bitfinex/quotes_BTCUSD_20240703
["timestamp","ask_amount","ask_price","bid_price","bid_amount"]
[1720033052581,1.68386102,60349.0,60348.0,0.014913]
[1720033052756,1.8031091,60349.0,60348.0,0.014913]
[1720033052952,2.0584141,60349.0,60348.0,0.014913]
[1720033053193,2.1345141,60349.0,60348.0,0.014913]
[1720033053591,2.1335141,60349.0,60348.0,0.007913]
[1720033053781,2.1325141,60349.0,60348.0,0.005913]
[1720033053984,2.1465141,60349.0,60348.0,0.006913]
[1720033054476,2.1165141,60349.0,60348.0,0.001913]
[1720033054677,2.1305141,60349.0,60348.0,0.002913]
[1720033054794,2.1605141,60349.0,60348.0,0.002913]
[1720033054993,1.98782943,60349.0,60348.0,0.002913]
[1720033055230,2.14913372,60349.0,60348.0,0.000913]
[1720033055440,2.16113372,60349.0,60348.0,0.001913]
[1720033055750,1.97943172,60349.0,60348.0,0.002913]
[1720033055978,1.97943172,60349.0,60348.0,0.001913]
[1720033055979,1.96543172,60349.0,60348.0,0.001913]
[1720033056176,1.97743172,60349.0,60348.0,0.002913]
[1720033056352,2.14313372,60349.0,60348.0,0.002913]
[1720033056553,2.07706625,60349.0,60348.0,0.002913]
[1720033057222,2.10706625,60349.0,60348.0,0.002913]
[1720033057375,2.07706625,60349.0,60348.0,0.002913]
[1720033057582,2.25355525,60349.0,60348.0,0.002913]
[1720033057778,2.6807523,60349.0,60348.0,0.002913]
[1720033058192,2.52172343,60349.0,60348.0,0.002913]
[1720033058394,2.60403471,60349.0,60348.0,0.002913]
[1720033058592,2.68013471,60349.0,60348.0,0.002913]
[1720033060758,2.98013471,60349.0,60348.0,0.002913]
[1720033060911,2.68013471,60349.0,60348.0,0.002913]
[1720033061321,2.98013471,60349.0,60348.0,0.002913]
[1720033063619,3.14049777,60349.0,60348.0,0.002913]
[1720033064781,2.98208649,60349.0,60348.0,0.002913]
[1720033064955,3.13945169,60349.0,60348.0,0.002913]
[1720033065361,3.13944969,60349.0,60348.0,0.002913]
[1720033065750,2.83944969,60349.0,60348.0,0.002913]
[1720033066351,2.67908663,60349.0,60348.0,0.002913]
[1720033068186,2.67866073,60349.0,60348.0,0.002913]
[1720033069360,2.97866073,60349.0,60348.0,0.002913]
[1720033070085,3.47036453,60349.0,60348.0,0.002913]
[1720033071454,3.31342723,60349.0,60348.0,0.002913]
[1720033071648,3.46890607,60349.0,60348.0,0.002913]
[1720033073087,3.46890607,60349.0,60347.0,0.000924]
[1720033073088,2.84387843,60348.0,60347.0,1e-06]
[1720033073289,3.13855428,60348.0,60347.0,1e-06]
[1720033073490,3.43855428,60348.0,60347.0,1e-06]
[1720033074317,3.46355428,60348.0,60347.0,0.002001]
[1720033074520,3.55845607,60348.0,60347.0,0.002001]
[1720033074729,3.09197723,60348.0,60347.0,0.001001]
[1720033074905,3.246497,60348.0,60347.0,0.001001]
[1720033076298,3.16588205,60348.0,60347.0,0.001001]
[1720033076524,3.46588205,60348.0,60347.0,0.001001]
[1720033077184,3.26016676,60348.0,60347.0,0.001001]
[1720033077345,3.33626676,60348.0,60347.0,0.001001]
[1720033078290,3.18207723,60348.0,60347.0,0.001001]
[1720033078517,3.33598857,60348.0,60347.0,0.001001]
[1720033078724,3.18207723,60348.0,60347.0,0.001001]
[1720033078924,3.33590395,60348.0,60347.0,0.001001]
[1720033079628,3.03590395,60348.0,60347.0,0.001001]
[1720033081529,3.03673395,60348.0,60347.0,0.001001]
[1720033081733,3.03700962,60348.0,60347.0,0.001001]
[1720033082186,2.70559862,60348.0,60347.0,0.001001]
[1720033082378,2.59949862,60348.0,60347.0,0.001001]
[1720033082512,2.67559862,60348.0,60347.0,0.001001]
[1720033082709,2.70559862,60348.0,60347.0,0.001001]
[1720033083332,2.54529982,60348.0,60347.0,0.001001]
[1720033083999,0.02970743,60334.0,60333.0,0.009196]
[1720033084347,1.21981914,60334.0,60333.0,0.009196]
[1720033084580,1.42562657,60334.0,60333.0,0.283896]
[1720033090424,1.36601543,60334.0,60333.0,0.283896]
[1720033090654,1.4473939,60334.0,60333.0,0.283896]
[1720033091165,1.44758439,60334.0,60333.0,0.283896]
[1720033091293,3.37956188,60334.0,60333.0,0.009196]
[1720033091497,0.08970743,60330.0,60329.0,0.009185]
[1720033091696,2.31730302,60330.0,60329.0,0.009185]
[1720033091897,3.06038728,60330.0,60329.0,0.009185]
[1720033092133,2.41643322,60330.0,60329.0,0.009185]
[1720033092330,2.32531243,60330.0,60329.0,0.009185]
[1720033092517,2.49722491,60330.0,60329.0,0.009185]
[1720033092729,1.79341491,60330.0,60329.0,0.009185]
[1720033092926,1.86951491,60330.0,60329.0,0.009185]
[1720033093194,1.7697081,60330.0,60329.0,0.128785]
[1720033093363,1.88382671,60330.0,60329.0,0.128785]
[1720033093563,1.89782671,60330.0,60329.0,0.128785]
[1720033093818,1.72560243,60330.0,60329.0,0.128785]
[1720033093981,1.89592271,60330.0,60329.0,0.128785]
[1720033096681,1.72048736,60330.0,60329.0,0.128785]
[1720033096831,1.35926993,60330.0,60329.0,0.128785]
[1720033097080,1.35926993,60330.0,60329.0,0.276985]
[1720033097272,1.35960714,60330.0,60329.0,0.276985]
[1720033098376,1.37531457,60330.0,60329.0,0.276985]
[1720033098861,1.36131457,60330.0,60329.0,0.276985]
[1720033099285,1.36831457,60330.0,60329.0,0.276985]
[1720033099701,1.45141457,60330.0,60329.0,0.276985]
[1720033100565,1.36005469,60330.0,60329.0,0.276985]
[1720033100985,1.43615469,60330.0,60329.0,0.276985]
[1720033102027,1.33034726,60330.0,60329.0,0.276985]
[1720033102233,1.40644726,60330.0,60329.0,0.276985]
[1720033103787,1.40651543,60330.0,60329.0,0.276985]
[1720033104204,1.350385,60330.0,60329.0,0.276985]
[1720033104402,1.76797762,60330.0,60329.0,0.009185]
[1720033105476,1.76097762,60330.0,60329.0,0.009185]
[1720033105931,1.44346762,60330.0,60329.0,0.009185]
[1720033106136,1.43646762,60330.0,60329.0,0.009185]
[1720033106341,1.43246762,60330.0,60329.0,0.009185]
[1720033106758,1.44146762,60330.0,60329.0,0.009185]
[1720033107191,1.44773923,60330.0,60329.0,0.009185]
[1720033107583,1.77924923,60330.0,60329.0,0.009185]
[1720033107739,1.44773923,60330.0,60329.0,0.009185]
[1720033109020,1.37163923,60330.0,60329.0,0.009185]
[1720033110473,1.3732246,60330.0,60329.0,0.009185]
[1720033110839,0.58049717,60330.0,60329.0,0.4382838]
[1720033111041,0.58049717,60330.0,60329.0,0.5373838]
[1720033111042,0.24898717,60330.0,60329.0,0.5373838]
[1720033111268,0.24898717,60330.0,60329.0,0.4912838]
[1720033111269,0.08323217,60330.0,60329.0,0.4912838]
[1720033111418,0.24898717,60330.0,60329.0,0.5673838]
[1720033111617,0.24898717,60330.0,60329.0,0.4912838]
[1720033111884,0.23998717,60330.0,60329.0,0.4912838]
[1720033112040,0.07423217,60330.0,60329.0,0.4912838]
[1720033113072,0.06423217,60330.0,60329.0,0.4912838]
[1720033113479,0.06423217,60330.0,60329.0,0.4922838]
[1720033113821,0.05507931,60330.0,60329.0,0.4922838]
[1720033115163,0.04478756,60330.0,60329.0,0.4922838]
[1720033115363,0.166589,60333.0,60332.0,0.2988]
[1720033115364,0.00084,60333.0,60332.0,0.2988]
[1720033115547,0.05592855,60333.0,60332.0,0.45939137]
[1720033115738,0.05592855,60333.0,60332.0,0.48239137]
[1720033116148,0.04563675,60333.0,60332.0,0.48239137]
[1720033116921,0.04563675,60333.0,60332.0,0.48339137]
[1720033116922,0.03882085,60333.0,60332.0,0.48339137]
[1720033117448,0.04180243,60333.0,60332.0,0.48339137]
[1720033117976,0.03880243,60333.0,60332.0,0.48339137]
[1720033118475,0.03980243,60333.0,60332.0,0.48539137]
[1720033120069,0.00284,60333.0,60332.0,0.65114037]
[1720033120266,0.00284,60333.0,60332.0,0.98263937]
[1720033120470,0.03966355,60333.0,60332.0,0.98263937]
[1720033123329,0.00284,60333.0,60332.0,0.48539137]
[1720033123732,0.03954679,60333.0,60332.0,0.48539137]
[1720033123928,0.03954679,60333.0,60332.0,0.4550988]
[1720033124451,0.03954679,60333.0,60332.0,0.48539137]
[1720033124586,0.03954679,60333.0,60332.0,0.4550988]
[1720033124784,0.03954679,60333.0,60332.0,0.48539137]
[1720033125188,0.03954679,60333.0,60332.0,0.4550988]
[1720033126012,0.03954679,60333.0,60332.0,0.48539137]
[1720033126622,0.00284,60333.0,60332.0,0.48539137]
[1720033127029,0.00284,60333.0,60332.0,0.4550988]
[1720033127307,0.03890191,60333.0,60332.0,0.4550988]
[1720033128021,0.03890191,60333.0,60332.0,0.48539137]
[1720033128553,0.03890191,60333.0,60332.0,0.4550988]
[1720033128743,0.20464791,60333.0,60332.0,0.4550988]
[1720033128937,0.53614091,60333.0,60332.0,0.4550988]
[1720033129358,0.20464791,60333.0,60332.0,0.4550988]
[1720033130238,0.20429199,60333.0,60332.0,0.4550988]
[1720033130581,0.168586,60333.0,60332.0,0.4550988]
[1720033130790,0.20439878,60333.0,60332.0,0.4550988]
[1720033132047,0.20439878,60333.0,60332.0,0.48539137]
[1720033132409,0.20439878,60333.0,60332.0,0.4550988]
[1720033133462,0.20339878,60333.0,60332.0,0.4530988]
[1720033133872,0.20339878,60333.0,60332.0,0.4540988]
[1720033134039,0.20439878,60333.0,60332.0,0.4560988]
[1720033134802,0.03865278,60333.0,60332.0,0.48639137]
[1720033137572,0.03865278,60333.0,60332.0,0.65214037]
[1720033138282,0.03865278,60333.0,60332.0,0.48639137]
[1720033138874,0.03665278,60333.0,60332.0,0.48239137]
[1720033139520,0.03765278,60333.0,60332.0,0.48839137]
[1720033140285,0.03865278,60333.0,60332.0,0.50039137]
[1720033142416,0.00284,60333.0,60332.0,0.50039137]
[1720033142615,0.02105143,60333.0,60332.0,0.50039137]
[1720033143042,0.02105147,60333.0,60332.0,0.50039137]
[1720033145458,0.02105147,60333.0,60332.0,0.50131537]
[1720033145681,0.00284,60333.0,60332.0,0.50131537]
[1720033146552,0.02085171,60333.0,60332.0,0.50131537]
[1720033148903,0.02085171,60333.0,60332.0,0.4710228]
[1720033149116,0.02085171,60333.0,60332.0,0.50131537]
[1720033149117,0.02102988,60333.0,60332.0,0.50131537]
[1720033149544,0.02102988,60333.0,60332.0,0.4710228]
[1720033150002,0.87946931,60333.0,60332.0,0.2022228]
[1720033150222,0.87946931,60333.0,60332.0,0.018924]
[1720033151599,0.87946931,60333.0,60332.0,0.041924]
[1720033152003,1.10028643,60333.0,60332.0,0.012924]
[1720033152209,1.26603243,60333.0,60332.0,0.012924]
[1720033153647,1.26603243,60333.0,60332.0,0.000924]
[1720033154040,1.26803243,60333.0,60332.0,0.012924]
[1720033154211,1.26803243,60333.0,60332.0,0.006924]
[1720033154394,1.26703243,60333.0,60332.0,0.003924]
[1720033154598,1.26703243,60333.0,60332.0,0.006924]
[1720033154792,1.161225,60333.0,60332.0,0.006924]
[1720033155453,1.19093243,60333.0,60332.0,0.006924]
[1720033157682,1.26703243,60333.0,60332.0,0.006924]
[1720033160126,1.19093243,60333.0,60332.0,0.006924]
[1720033160329,2.03132543,60333.0,60332.0,0.006924]
[1720033160680,1.89522543,60333.0,60332.0,0.006924]
[1720033160881,1.97132543,60333.0,60332.0,0.006924]
[1720033161326,1.97032543,60333.0,60332.0,0.000924]
[1720033161547,1.97432543,60333.0,60332.0,0.000924]
[1720033161958,2.03432543,60333.0,60332.0,0.000924]
[1720033162596,2.03832543,60333.0,60332.0,0.000924]
[1720033164083,1.96222543,60333.0,60332.0,0.000924]
[1720033164292,2.03832543,60333.0,60332.0,0.000924]
[1720033164866,1.90222543,60333.0,60332.0,0.000924]
[1720033165078,1.97832543,60333.0,60332.0,0.000924]
[1720033166062,1.62942543,60333.0,60332.0,0.000924]
[1720033166262,1.29793243,60333.0,60332.0,0.000924]
[1720033166496,1.37403243,60333.0,60332.0,0.000924]
[1720033166697,1.29793243,60333.0,60332.0,0.000924]
[1720033166897,1.268225,60333.0,60332.0,0.000924]
[1720033167709,1.29793243,60333.0,60332.0,0.000924]
[1720033168307,1.344325,60333.0,60332.0,0.000924]
[1720033168735,1.37403243,60333.0,60332.0,0.000924]
[1720033169333,1.268225,60333.0,60332.0,0.000924]
[1720033169551,1.344325,60333.0,60332.0,0.000924]
[1720033169884,1.40273608,60333.0,60332.0,0.000924]
[1720033170257,1.40273626,60333.0,60332.0,0.000924]
[1720033171113,1.40273626,60333.0,60329.0,0.009185]
[1720033171114,0.16576,60328.0,60327.0,0.060509]
[1720033171325,0.26576,60328.0,60327.0,0.2438078]
[1720033172455,0.597281,60328.0,60327.0,0.2468078]
[1720033173282,0.597281,60328.0,60327.0,0.2498078]
[1720033174067,0.597281,60328.0,60327.0,0.3706078]
[1720033176812,0.597281,60328.0,60327.0,0.3715318]
[1720033177412,0.62646309,60328.0,60327.0,0.3715318]
[1720033179134,0.597281,60328.0,60327.0,0.3715318]
[1720033179337,0.597281,60328.0,60327.0,0.40182437]
[1720033179564,0.597281,60328.0,60327.0,0.3715318]
[1720033181325,0.26899915,60328.0,60327.0,0.3715318]
[1720033181525,0.43475915,60328.0,60327.0,0.3715318]
[1720033182534,0.46469628,60328.0,60327.0,0.3715318]
[1720033183742,0.46478032,60328.0,60327.0,0.3715318]
[1720033184715,0.56478032,60328.0,60327.0,0.3715318]
[1720033187136,0.53475915,60328.0,60327.0,0.3715318]
[1720033187343,0.56487006,60328.0,60327.0,0.3715318]
[1720033187548,0.56482292,60328.0,60327.0,0.3715318]
[1720033188104,0.56482292,60328.0,60327.0,0.1902228]
[1720033188243,0.89634392,60328.0,60327.0,0.1902228]
[1720033190112,0.92605135,60328.0,60327.0,0.1902228]
[1720033190315,0.92619954,60328.0,60327.0,0.1902228]
[1720033190523,0.86628015,60328.0,60327.0,0.1902228]
[1720033190701,0.89598758,60328.0,60327.0,0.1902228]
[1720033190902,0.92629013,60328.0,60327.0,0.1902228]
[1720033191766,0.82629013,60328.0,60327.0,0.1902228]
[1720033191968,0.92629013,60328.0,60327.0,0.1902228]
[1720033192135,0.8965827,60328.0,60327.0,0.1902228]
[1720033192382,0.92629013,60328.0,60327.0,0.1902228]
[1720033192683,0.8965827,60328.0,60327.0,0.1902228]
[1720033193627,0.89598758,60328.0,60327.0,0.1902228]
[1720033193844,0.92595327,60328.0,60327.0,0.1902228]
[1720033195384,0.82595327,60328.0,60327.0,0.1902228]
[1720033195585,0.92595327,60328.0,60327.0,0.1902228]
[1720033196942,0.89598758,60328.0,60327.0,0.1902228]
[1720033197157,0.92569912,60328.0,60327.0,0.1902228]
[1720033198631,1.25722012,60328.0,60327.0,0.1902228]
[1720033200344,1.25722012,60328.0,60327.0,0.006924]
[1720033200345,2.23415058,60328.0,60327.0,0.006924]
[1720033200627,2.26799408,60328.0,60327.0,0.006924]
[1720033200840,2.34886606,60328.0,60327.0,0.006924]
[1720033201040,2.03344506,60328.0,60327.0,0.006924]
[1720033201243,2.03344506,60328.0,60327.0,0.003924]
[1720033201395,2.03344506,60328.0,60327.0,0.000924]
[1720033201597,2.11573669,60328.0,60327.0,0.001924]
[1720033201797,2.12673669,60328.0,60327.0,0.002924]
[1720033201975,2.11473669,60328.0,60327.0,0.001924]
[1720033202178,2.44625769,60328.0,60327.0,0.001924]
[1720033202496,2.44625769,60328.0,60327.0,0.002924]
[1720033202497,2.44896606,60328.0,60327.0,0.002924]
[1720033203409,2.37286606,60328.0,60327.0,0.002924]
[1720033203808,2.44896606,60328.0,60327.0,0.002924]
[1720033204009,2.37286606,60328.0,60327.0,0.002924]
[1720033204262,2.44896606,60328.0,60327.0,0.002924]
[1720033205938,2.37335314,60328.0,60327.0,0.002924]
[1720033206068,2.06750243,60328.0,60327.0,0.002924]
[1720033206269,2.05140243,60328.0,60327.0,0.002924]
[1720033206470,2.12750243,60328.0,60327.0,0.002924]
[1720033208513,2.12833243,60328.0,60327.0,0.002924]
[1720033208689,2.45985343,60328.0,60327.0,0.002924]
[1720033209062,2.63508058,60328.0,60327.0,0.002924]
[1720033209271,2.38282513,60328.0,60327.0,0.002924]
[1720033209468,2.45892513,60328.0,60327.0,0.002924]
[1720033210635,2.46921394,60328.0,60327.0,0.002924]
[1720033211254,4.3672678,60328.0,60327.0,0.002924]
[1720033212251,4.3672678,60328.0,60327.0,1e-06]
[1720033212252,5.0734888,60328.0,60327.0,1e-06]
[1720033212463,5.0734888,60328.0,60325.0,0.009185]
[1720033212464,2.51313343,60326.0,60325.0,0.009185]
[1720033212613,1.15258643,60321.0,60320.0,0.009185]
[1720033212822,1.48898523,60321.0,60320.0,0.009185]
[1720033213070,1.6327856,60321.0,60320.0,0.009185]
[1720033213478,3.2905806,60321.0,60320.0,0.009185]
[1720033213794,3.38353226,60321.0,60320.0,0.009185]
[1720033213997,4.74734426,60321.0,60320.0,0.009185]
[1720033214615,4.75834426,60321.0,60320.0,0.010185]
[1720033214985,4.75834426,60321.0,60320.0,0.009185]
[1720033214986,4.76134426,60321.0,60320.0,0.009185]
[1720033215467,4.74734426,60321.0,60320.0,0.009185]
[1720033215607,4.75642911,60321.0,60320.0,0.009185]
[1720033216229,4.77042911,60321.0,60320.0,0.009185]
[1720033216427,1.58201943,60309.0,60308.0,0.00837]
[1720033216635,2.43485699,60309.0,60308.0,0.00837]
[1720033217234,2.73485699,60309.0,60308.0,0.00837]
[1720033217637,3.25102258,60309.0,60308.0,0.00837]
[1720033217859,3.17124764,60309.0,60308.0,0.00837]
[1720033218272,3.00599749,60309.0,60308.0,0.00837]
[1720033218472,3.06541527,60309.0,60308.0,0.00837]
[1720033218692,3.07941527,60309.0,60308.0,0.00837]
[1720033218908,3.01999749,60309.0,60308.0,0.00837]
[1720033219112,3.37990383,60309.0,60308.0,0.00837]
[1720033219310,3.47444603,60309.0,60308.0,0.00837]
[1720033219537,3.94874483,60309.0,60308.0,0.00837]
[1720033219769,2.51370543,60307.0,60306.0,0.0121739]
[1720033219941,4.22526357,60307.0,60306.0,0.0121739]
[1720033221080,4.23926357,60307.0,60306.0,0.0121739]
[1720033221294,4.25326357,60307.0,60306.0,0.0121739]
[1720033221753,4.25326357,60307.0,60300.0,0.50004]
[1720033221754,2.79682643,60303.0,60300.0,0.50004]
[1720033221876,3.92538457,60303.0,60300.0,0.50004]
[1720033222084,3.83758011,60303.0,60300.0,0.50004]
[1720033222318,4.16923811,60303.0,60300.0,0.50004]
[1720033222748,4.00887505,60303.0,60300.0,0.50004]
[1720033223246,4.31687505,60303.0,60300.0,0.50004]
[1720033223661,4.32887505,60303.0,60300.0,0.50004]
[1720033223858,4.32087505,60303.0,60300.0,0.50004]
[1720033224069,4.34887505,60303.0,60300.0,0.50004]
[1720033224273,4.50923811,60303.0,60300.0,0.50004]
[1720033224904,4.20923811,60303.0,60300.0,0.50004]
[1720033225110,4.50923811,60303.0,60300.0,0.50004]
[1720033225314,4.50756147,60303.0,60300.0,0.50004]
[1720033225732,4.20756147,60303.0,60300.0,0.50004]
[1720033225947,4.18306847,60303.0,60300.0,0.50004]
[1720033226152,1.71943161,60303.0,60300.0,0.50004]
[1720033226368,1.85553161,60303.0,60300.0,0.50004]
[1720033227016,1.79553161,60303.0,60300.0,0.50004]
[1720033227219,1.85553161,60303.0,60300.0,0.50004]
[1720033228465,1.76987349,60303.0,60300.0,0.50004]
[1720033228665,1.8069205,60303.0,60300.0,0.50004]
[1720033228933,1.76987866,60303.0,60300.0,0.50004]
[1720033230147,1.75587866,60303.0,60300.0,0.50004]
[1720033230346,1.76887866,60303.0,60300.0,0.50004]
[1720033230497,1.78287866,60303.0,60300.0,0.50004]
[1720033230699,1.76987866,60303.0,60300.0,0.50004]
[1720033231070,1.78087866,60303.0,60300.0,0.50004]
[1720033231697,1.78082694,60303.0,60300.0,0.50004]
[1720033232664,1.84082694,60303.0,60300.0,0.50004]
[1720033233140,2.618248,60303.0,60300.0,0.50004]
[1720033234454,2.45788494,60303.0,60302.0,0.00767558]
[1720033234659,2.61818374,60303.0,60302.0,0.00520693]
[1720033237474,0.1204,60301.0,60296.0,0.009185]
[1720033237778,0.85893443,60297.0,60296.0,0.009185]
[1720033237901,1.34818394,60297.0,60296.0,0.009185]
[1720033238103,1.75597494,60297.0,60296.0,0.009185]
[1720033238304,1.69841643,60297.0,60296.0,0.009185]
[1720033238646,1.75657988,60297.0,60296.0,0.009185]
[1720033238820,1.68067258,60297.0,60296.0,0.08934082]
[1720033239025,1.75677258,60297.0,60296.0,0.08934082]
[1720033239425,1.68067258,60297.0,60296.0,0.08934082]
[1720033240333,1.69267258,60297.0,60296.0,0.08934082]
[1720033240751,1.70667258,60297.0,60296.0,0.08934082]
[1720033240976,1.69267258,60297.0,60296.0,0.08934082]
[1720033241312,1.70667258,60297.0,60296.0,0.08934082]
[1720033241516,1.70668348,60297.0,60296.0,0.009185]
[1720033243799,1.76668348,60297.0,60296.0,0.009185]
[1720033244749,1.76614869,60297.0,60296.0,0.009185]
[1720033245088,1.76604869,60297.0,60296.0,0.009185]
[1720033245692,1.7861081,60297.0,60296.0,0.009185]
[1720033246112,1.7261081,60297.0,60296.0,0.009185]
[1720033248043,1.63856841,60297.0,60296.0,0.009185]
[1720033248290,1.35263525,60297.0,60296.0,0.293585]
[1720033248868,1.35253525,60297.0,60296.0,0.293585]
[1720033249020,1.38224268,60297.0,60296.0,0.293585]
[1720033249366,1.02084425,60297.0,60296.0,0.293585]
[1720033249608,0.09181725,60297.0,60296.0,0.4768838]
[1720033249732,0.165845,60297.0,60296.0,0.3462838]
[1720033249934,0.165745,60297.0,60296.0,0.3462838]
[1720033250397,0.165745,60297.0,60296.0,0.4768838]
[1720033251010,0.168745,60297.0,60296.0,0.4768838]
[1720033251414,0.506436,60297.0,60296.0,0.4768838]
[1720033253034,0.506436,60297.0,60296.0,0.50717637]
[1720033253413,0.009,60297.0,60296.0,0.50717637]
[1720033255230,0.009,60297.0,60296.0,0.4768838]
[1720033255873,0.009,60297.0,60296.0,0.50717637]
[1720033256070,0.009,60297.0,60296.0,0.4968838]
[1720033256469,0.174845,60297.0,60296.0,0.4968838]
[1720033257122,0.174845,60297.0,60296.0,0.52717637]
[1720033257343,0.174845,60297.0,60296.0,0.4968838]
[1720033257472,0.174845,60297.0,60296.0,0.52717637]
[1720033260179,0.174845,60297.0,60296.0,0.4968838]
[1720033260549,0.174945,60297.0,60296.0,0.4968838]
[1720033260751,0.506636,60297.0,60296.0,0.4968838]
[1720033261733,0.0091,60297.0,60296.0,0.52717637]
[1720033262340,0.0092,60297.0,60296.0,0.52717637]
[1720033263216,0.0092,60297.0,60296.0,0.69302437]
[1720033263442,0.0092,60297.0,60296.0,0.52717637]
[1720033263656,0.506636,60297.0,60296.0,0.4968838]
[1720033263873,0.506636,60297.0,60296.0,0.313585]
[1720033263874,1.170018,60297.0,60296.0,0.313585]
[1720033264294,1.19972543,60297.0,60296.0,0.029185]
[1720033264513,1.53141643,60297.0,60296.0,0.029185]
[1720033264744,1.83910189,60297.0,60296.0,0.029185]
[1720033265159,1.83620189,60297.0,60296.0,0.029185]
[1720033265376,1.99620189,60297.0,60296.0,0.029185]
[1720033265787,2.00120189,60297.0,60296.0,0.029185]
[1720033266210,1.94120189,60297.0,60296.0,0.029185]
[1720033266617,1.99620189,60297.0,60296.0,0.029185]
[1720033266818,1.94932716,60297.0,60296.0,0.030285]
[1720033267022,2.00932716,60297.0,60296.0,0.030285]
[1720033267230,2.00922716,60297.0,60296.0,0.030285]
[1720033267638,2.02322716,60297.0,60296.0,0.031285]
[1720033267965,1.94922716,60297.0,60296.0,0.030285]
[1720033268365,1.96222716,60297.0,60296.0,0.031285]
[1720033268785,1.94922716,60297.0,60296.0,0.030385]
[1720033269165,1.96222716,60297.0,60296.0,0.031385]
[1720033269599,1.96232716,60297.0,60296.0,0.031385]
[1720033269804,2.02232716,60297.0,60296.0,0.031385]
[1720033270034,1.99091643,60297.0,60296.0,0.031385]
[1720033270237,2.02252309,60297.0,60296.0,0.031385]
[1720033270636,2.35421409,60297.0,60296.0,0.031385]
[1720033272426,2.29421409,60297.0,60296.0,0.031385]
[1720033273065,2.35421409,60297.0,60296.0,0.031385]
[1720033273271,2.3551381,60297.0,60296.0,0.031385]
[1720033273448,2.35505141,60297.0,60296.0,0.031385]
[1720033275245,2.51535021,60297.0,60296.0,0.031385]
[1720033276748,2.48383024,60297.0,60296.0,0.031385]
[1720033276895,2.51514483,60297.0,60296.0,0.031385]
[1720033277293,2.81515245,60297.0,60296.0,0.031385]
[1720033277781,2.89399837,60297.0,60296.0,0.031385]
[1720033278426,2.78383024,60297.0,60296.0,0.031385]
[1720033278638,3.76818509,60297.0,60296.0,0.031385]
[1720033278836,4.39987609,60297.0,60296.0,0.031385]
[1720033278995,4.23951303,60297.0,60296.0,0.031385]
[1720033279198,2.51403543,60296.0,60295.0,0.009185]
[1720033279398,2.51403543,60296.0,60271.0,0.009185]
[1720033279399,0.48753043,60273.0,60271.0,0.009185]
[1720033279642,1.5991059,60273.0,60271.0,0.009185]
[1720033279838,0.165931,60266.0,60265.0,0.07771082]
[1720033280040,1.19112443,60266.0,60265.0,0.07771082]
[1720033280240,1.19112443,60266.0,60264.0,0.1568]
[1720033280241,0.4978,60265.0,60264.0,0.1568]
[1720033280443,0.829667,60265.0,60264.0,0.1568]
[1720033280781,1.161534,60265.0,60264.0,0.1568]
[1720033281370,1.161534,60265.0,60259.0,0.280185]
[1720033281371,0.497842,60260.0,60259.0,0.280185]
[1720033281513,1.161632,60260.0,60259.0,0.280185]
[1720033281716,0.829737,60260.0,60259.0,0.280185]
[1720033282461,0.009,60265.0,60263.0,0.03039257]
[1720033282803,0.331831,60272.0,60259.0,0.4404838]
[1720033282804,0.331801,60277.0,60270.0,0.1201]
[1720033283007,0.331801,60277.0,60264.0,0.26677305]
[1720033283008,0.165914,60273.0,60272.0,0.1201]
[1720033283160,0.165914,60273.0,60272.0,0.2803988]
[1720033283161,0.497737,60273.0,60272.0,0.2803988]
[1720033283367,0.497737,60273.0,60272.0,0.3033988]
[1720033283578,0.497637,60273.0,60272.0,0.3033988]
[1720033283774,0.497637,60273.0,60272.0,0.38394719]
[1720033283975,0.02960743,60283.0,60272.0,0.38394719]
[1720033283976,0.02960743,60298.0,60286.0,0.03039257]
[1720033284182,0.165864,60290.0,60289.0,0.03039257]
[1720033284356,0.02960743,60299.0,60291.0,0.03039257]
[1720033284357,0.165854,60294.0,60291.0,0.03039257]
[1720033284556,0.33281801,60297.0,60293.0,0.03039257]
[1720033284747,0.16696901,60297.0,60296.0,0.0001]
[1720033284948,0.16696901,60297.0,60296.0,0.3096]
[1720033285340,0.49866001,60297.0,60296.0,0.3096]
[1720033285540,0.49856001,60297.0,60296.0,0.3096]
[1720033285748,0.00102401,60297.0,60296.0,0.50019137]
[1720033286354,0.00692401,60297.0,60296.0,0.4697988]
[1720033286706,0.00092401,60297.0,60296.0,0.50019137]
[1720033286846,0.00092401,60297.0,60296.0,0.50009137]
[1720033287047,0.00092401,60297.0,60296.0,0.4696988]
[1720033287048,0.49846001,60297.0,60296.0,0.4696988]
[1720033287315,0.49946001,60297.0,60296.0,0.4696988]
[1720033287537,0.49946001,60297.0,60286.0,0.331748]
[1720033287538,0.83115101,60297.0,60287.0,0.1272]
[1720033287734,0.83115101,60297.0,60288.0,0.19069137]
[1720033287735,0.165866,60290.0,60288.0,0.19069137]
[1720033288097,0.165866,60290.0,60288.0,0.1602988]
[1720033288739,0.165862,60292.0,60288.0,0.1601988]
[1720033288988,0.165862,60291.0,60289.0,0.023]
[1720033289156,0.165862,60291.0,60290.0,0.1602988]
[1720033289482,0.165862,60291.0,60290.0,0.1831988]
[1720033291598,0.497586,60291.0,60290.0,0.1851988]
[1720033291733,0.497586,60291.0,60290.0,0.1831988]
[1720033291932,0.497586,60291.0,60284.0,0.1553]
[1720033291933,0.02960743,60288.0,60284.0,0.1553]
[1720033292400,0.497635,60285.0,60284.0,0.1553]
[1720033293212,0.497635,60285.0,60284.0,0.1783]
[1720033293612,0.498635,60285.0,60284.0,0.1783]
[1720033294262,0.497635,60285.0,60284.0,0.1783]
[1720033294559,0.498635,60285.0,60284.0,0.1783]
[1720033295074,0.498635,60285.0,60284.0,0.002]
[1720033295075,0.831392,60285.0,60284.0,0.002]
[1720033295264,0.497668,60281.0,60280.0,0.4676]
[1720033295471,0.829447,60281.0,60280.0,0.1832988]
[1720033296033,0.829447,60281.0,60280.0,0.1831988]
[1720033296851,0.829447,60281.0,60280.0,0.023]
[1720033297154,0.497685,60279.0,60278.0,0.023]
[1720033297374,0.829475,60279.0,60278.0,0.1832988]
[1720033298541,0.830475,60279.0,60278.0,0.002]
[1720033299199,1.494055,60279.0,60278.0,0.002]
[1720033299397,1.162265,60279.0,60278.0,0.002]
[1720033299597,1.162265,60279.0,60269.0,0.4676]
[1720033299598,0.331821,60274.0,60271.0,0.11054839]
[1720033299796,0.165914,60272.0,60271.0,0.27084719]
[1720033300650,0.165914,60272.0,60271.0,0.29384719]